fUST/lending_fUST_20251113
["ID","MTS","AMOUNT","RATE_DAILY","PERIOD"]
[393861038,1763045510471,-500.0,0.00044109,120]
[393861039,1763045510480,-782.59,0.00044109,120]
[393861040,1763045510490,-826.01,0.00044109,120]
[393861041,1763045510499,-555.43,0.00044109,120]
[393861042,1763045510508,-500.0,0.00044109,120]
[393861043,1763045510518,-721.96,0.00044109,120]
[393861044,1763045510527,-500.0,0.00044109,120]
[393861045,1763045510536,-500.0,0.00044109,120]
[393861046,1763045510545,-626.10595774,0.00044109,120]
[393861047,1763045510556,-500.0,0.00044109,120]
[393861048,1763045510566,-500.0,0.00044109,120]
[393861049,1763045510576,-500.0,0.00044109,120]
[393861050,1763045510585,-500.0,0.00044109,120]
[393861051,1763045510600,-500.0,0.00044109,120]
[393861052,1763045510610,-500.0,0.00044109,120]
[393861053,1763045510620,-500.0,0.00044109,120]
[393861054,1763045510630,-500.0,0.00044109,120]
[393861055,1763045510640,-500.0,0.00044109,120]
[393861056,1763045510651,-500.0,0.00044109,120]
[393861057,1763045510661,-500.0,0.00044109,120]
[393861058,1763045510671,-500.0,0.00044109,120]
[393861059,1763045510681,-500.0,0.00044109,120]
[393861060,1763045510690,-913.41,0.00044109,120]
[393861061,1763045510700,-500.0,0.00044109,120]
[393861062,1763045510710,-579.47,0.00044109,120]
[393861063,1763045510720,-500.0,0.00044109,120]
[393861064,1763045510729,-500.0,0.00044109,120]
[393861065,1763045510739,-500.0,0.00044109,120]
[393861066,1763045510749,-500.0,0.00044109,120]
[393861067,1763045510759,-185.37911794,0.00044109,120]
[393861068,1763045510768,-500.0,0.00044109,120]
[393861069,1763045510778,-500.0,0.00044109,120]
[393861070,1763045510787,-684.28,0.00044109,120]
[393861071,1763045510797,-500.0,0.00044109,120]
[393861072,1763045510806,-500.0,0.00044109,120]
[393861073,1763045510816,-500.0,0.00044109,120]
[393861074,1763045510825,-500.0,0.00044109,120]
[393861075,1763045510835,-624.24,0.00044109,2]
[393861076,1763045510849,-1000.0,0.00044109,7]
[393861077,1763045510859,-500.0,0.00044109,120]
[393861078,1763045510869,-770.91,0.00044109,120]
[393861079,1763045510880,-500.0,0.00044109,120]
[393861080,1763045510890,-500.0,0.00044109,120]
[393861081,1763045510900,-3457.67,0.00044109,120]
[393861082,1763045510909,-500.0,0.00044109,120]
[393861083,1763045510919,-500.0,0.00044109,120]
[393861084,1763045510928,-1457.38,0.00044109,120]
[393861085,1763045510937,-797.92,0.00044109,120]
[393861086,1763045510947,-636.07511909,0.00044109,120]
[393861087,1763045510957,-500.0,0.00044109,120]
[393861088,1763045510966,-500.0,0.00044109,120]
[393861089,1763045510975,-500.0,0.00044109,120]
[393861090,1763045510984,-630.0,0.00044109,120]
[393861091,1763045510993,-500.0,0.00044109,120]
[393861092,1763045511003,-500.0,0.00044109,120]
[393861093,1763045511013,-500.0,0.00044109,120]
[393861094,1763045511022,-500.0,0.00044109,120]
[393861095,1763045511032,-500.0,0.00044109,120]
[393861096,1763045511042,-500.0,0.00044109,120]
[393861097,1763045511052,-500.0,0.00044109,120]
[393861098,1763045511062,-500.0,0.00044109,120]
[393861099,1763045511071,-1748.23,0.00044109,120]
[393861100,1763045511082,-500.0,0.00044109,120]
[393861101,1763045511096,-500.0,0.00044109,120]
[393861102,1763045511106,-500.0,0.00044109,120]
[393861103,1763045511117,-871.35,0.00044109,120]
[393861104,1763045511127,-500.0,0.00044109,120]
[393861105,1763045511137,-500.0,0.00044109,120]
[393861106,1763045511146,-854.46,0.00044109,120]
[393861107,1763045511157,-500.0,0.00044109,120]
[393861108,1763045511167,-500.0,0.00044109,120]
[393861109,1763045511178,-591.42,0.00044109,120]
[393861110,1763045511188,-614.87,0.00044109,120]
[393861111,1763045511197,-500.0,0.00044109,120]
[393861112,1763045511207,-500.0,0.00044109,120]
[393861113,1763045511218,-500.0,0.00044109,120]
[393861114,1763045511228,-500.0,0.00044109,120]
[393861115,1763045511238,-500.0,0.00044109,120]
[393861116,1763045511253,-817.21,0.00044109,120]
[393861117,1763045511263,-500.0,0.00044109,120]
[393861118,1763045511273,-500.0,0.00044109,120]
[393861119,1763045511283,-500.0,0.00044109,120]
[393861120,1763045511294,-500.0,0.00044109,120]
[393861121,1763045511303,-500.0,0.00044109,120]
[393861122,1763045511313,-699.0,0.00044109,120]
[393861123,1763045511322,-500.0,0.00044109,120]
[393861124,1763045511334,-585.98,0.00044109,120]
[393861125,1763045511349,-500.0,0.00044109,120]
[393861126,1763045511359,-511.72165829,0.00044109,120]
[393861127,1763045511369,-500.0,0.00044109,120]
[393861128,1763045511378,-150.0,0.00044173,7]
[393861129,1763045511389,-500.0,0.00044173,7]
[393861130,1763045511400,-10000.0,0.00044283,2]
[393861131,1763045511410,-500.0,0.00044383,120]
[393861132,1763045511422,-500.0,0.00044383,120]
[393861133,1763045511433,-500.0,0.00044383,120]
[393861134,1763045511443,-544.73,0.00044383,120]
[393861135,1763045511454,-500.0,0.00044383,120]
[393861136,1763045511464,-500.0,0.00044383,120]
[393861137,1763045511474,-514.09779796,0.00044383,120]
[393861138,1763045511484,-182.08246675,0.00044383,120]
[393861139,1763045511494,-500.0,0.00044383,120]
[393861140,1763045511504,-500.0,0.00044383,120]
[393861141,1763045511513,-500.0,0.00044383,120]
[393861142,1763045511523,-1000.0,0.00044383,2]
[393861143,1763045511533,-500.0,0.00044383,120]
[393861144,1763045511542,-608.84,0.00044383,120]
[393861145,1763045511552,-500.0,0.00044383,120]
[393861146,1763045511562,-500.0,0.00044383,120]
[393861147,1763045511571,-500.0,0.00044383,120]
[393861148,1763045511581,-500.0,0.00044383,120]
[393861149,1763045511597,-500.0,0.00044383,120]
[393861150,1763045511607,-500.0,0.00044383,120]
[393861151,1763045511616,-565.99,0.00044383,120]
[393861152,1763045511626,-500.0,0.00044383,120]
[393861153,1763045511636,-500.0,0.00044383,120]
[393861154,1763045511646,-500.0,0.00044383,120]
[393861155,1763045511655,-500.0,0.00044383,120]
[393861156,1763045511665,-500.0,0.00044383,120]
[393861157,1763045511675,-500.0,0.00044383,120]
[393861158,1763045511684,-500.0,0.00044383,120]
[393861159,1763045511694,-500.0,0.00044383,120]
[393861160,1763045511704,-500.0,0.00044383,120]
[393861161,1763045511714,-200.0,0.00044383,120]
[393861162,1763045511724,-500.0,0.00044383,120]
[393861163,1763045511734,-500.0,0.00044383,120]
[393861164,1763045511744,-500.0,0.00044383,120]
[393861165,1763045511754,-500.0,0.00044383,120]
[393861166,1763045511763,-1000.0,0.00044383,120]
[393861167,1763045511773,-500.0,0.00044383,120]
[393861168,1763045511783,-500.0,0.00044383,120]
[393861169,1763045511793,-500.0,0.00044383,120]
[393861170,1763045511803,-732.35,0.00044383,120]
[393861171,1763045511813,-500.0,0.00044383,120]
[393861172,1763045511823,-500.0,0.00044383,120]
[393861173,1763045511832,-500.0,0.00044383,120]
[393861174,1763045511845,-500.0,0.00044383,120]
[393861175,1763045511855,-500.0,0.00044383,120]
[393861176,1763045511865,-570.02,0.00044383,120]
[393861177,1763045511874,-502.75,0.00044383,120]
[393861178,1763045511883,-500.0,0.00044383,120]
[393861179,1763045511893,-500.0,0.00044383,120]
[393861180,1763045511903,-500.0,0.00044383,120]
[393861181,1763045511913,-500.0,0.00044383,120]
[393861182,1763045511923,-500.0,0.00044383,120]
[393861183,1763045512053,-585.51,0.00044383,120]
[393861184,1763045512071,-500.0,0.00044383,120]
[393861185,1763045512081,-500.0,0.00044383,120]
[393861186,1763045512097,-500.0,0.00044383,120]
[393861187,1763045512110,-500.0,0.00044383,120]
[393861188,1763045512120,-1000.0,0.00044383,2]
[393861189,1763045512130,-500.0,0.00044383,120]
[393861190,1763045512140,-500.0,0.00044383,120]
[393861191,1763045512151,-500.0,0.00044383,120]
[393861192,1763045512161,-500.0,0.00044383,120]
[393861193,1763045512172,-500.0,0.00044383,120]
[393861194,1763045512182,-157.283892,0.00044383,3]
[393861195,1763045512192,-500.0,0.00044383,120]
[393861196,1763045512203,-500.0,0.00044383,120]
[393861197,1763045512213,-500.0,0.00044383,120]
[393861198,1763045512223,-500.0,0.00044383,120]
[393861199,1763045512233,-514.82,0.00044383,120]
[393861200,1763045512244,-500.0,0.00044383,120]
[393861201,1763045512254,-500.0,0.00044383,120]
[393861202,1763045512264,-500.0,0.00044383,120]
[393861203,1763045512277,-500.0,0.00044383,120]
[393861204,1763045512287,-500.0,0.00044383,120]
[393861205,1763045512297,-500.0,0.00044383,120]
[393861206,1763045512307,-577.09,0.00044383,120]
[393861207,1763045512318,-500.0,0.00044383,120]
[393861208,1763045512328,-834.01,0.00044383,120]
[393861209,1763045512338,-500.0,0.00044383,120]
[393861210,1763045512563,-969.65,0.00044383,120]
[393861211,1763045512573,-1066.87,0.00044383,7]
[393861212,1763045512583,-1264.73,0.00044383,30]
[393861213,1763045512595,-500.0,0.00044383,120]
[393861214,1763045512605,-787.85,0.00044383,120]
[393861215,1763045512615,-552.73,0.00044383,120]
[393861216,1763045512625,-2599.22,0.00044383,2]
[393861217,1763045512635,-500.0,0.00044383,120]
[393861218,1763045512646,-500.0,0.00044383,120]
[393861219,1763045512656,-548.52327491,0.00044383,120]
[393861220,1763045512665,-400.28388004,0.00044383,30]
[393861221,1763045512675,-500.0,0.00044383,120]
[393861222,1763045512685,-736.82,0.00044383,120]
[393861223,1763045512694,-500.0,0.00044383,120]
[393861224,1763045512704,-500.0,0.00044383,120]
[393861225,1763045512714,-512.47,0.00044383,120]
[393861226,1763045512723,-500.0,0.00044383,120]
[393861227,1763045512733,-500.0,0.00044383,120]
[393861228,1763045512743,-534.45,0.00044383,120]
[393861229,1763045512752,-500.0,0.00044383,120]
[393861230,1763045512761,-372.16477138,0.00044383,120]
[393861231,1763045512771,-500.0,0.00044383,120]
[393861232,1763045512781,-500.0,0.00044383,120]
[393861233,1763045512790,-500.0,0.00044383,120]
[393861234,1763045512799,-500.0,0.00044383,120]
[393861235,1763045512809,-500.0,0.00044383,120]
[393861236,1763045512819,-539.92,0.00044383,120]
[393861237,1763045512828,-500.0,0.00044383,120]
[393861238,1763045512838,-500.0,0.00044383,2]
[393861239,1763045512852,-500.0,0.00044383,120]
[393861240,1763045512861,-500.0,0.00044383,120]
[393861241,1763045512871,-550.95651209,0.00044383,120]
[393861242,1763045512882,-500.0,0.00044383,120]
[393861243,1763045512891,-500.0,0.00044383,120]
[393861244,1763045512901,-500.0,0.00044383,120]
[393861245,1763045512910,-628.13239252,0.00044383,120]
[393861246,1763045512920,-558.63,0.00044383,120]
[393861247,1763045512929,-500.0,0.00044383,120]
[393861248,1763045512939,-257.275672,0.00044383,120]
[393861249,1763045512948,-257.275672,0.00044383,120]
[393861250,1763045512958,-500.0,0.00044383,120]
[393861251,1763045512967,-257.275672,0.00044383,120]
[393861252,1763045512976,-500.0,0.00044383,120]
[393861253,1763045512987,-257.275672,0.00044383,120]
[393861254,1763045512996,-253.121379,0.00044383,15]
[393861255,1763045513006,-500.0,0.00044383,120]
[393861256,1763045513016,-500.0,0.00044383,120]
[393861257,1763045513026,-500.0,0.00044383,120]
[393861258,1763045513036,-500.0,0.00044383,120]
[393861259,1763045513046,-500.0,0.00044383,120]
[393861260,1763045513056,-151.0,0.00044383,120]
[393861261,1763045513067,-500.0,0.00044383,120]
[393861262,1763045513077,-500.0,0.00044383,120]
[393861263,1763045513087,-500.0,0.00044383,120]
[393861264,1763045513102,-500.0,0.00044383,120]
[393861265,1763045513113,-152.096376,0.00044383,120]
[393861266,1763045513123,-633.9,0.00044383,120]
[393861267,1763045513133,-500.0,0.00044383,120]
[393861268,1763045513145,-500.0,0.00044383,120]
[393861269,1763045513155,-519.29,0.00044383,2]
[393861270,1763045513166,-500.0,0.00044383,120]
[393861271,1763045513176,-500.0,0.00044383,120]
[393861272,1763045513186,-500.0,0.00044383,120]
[393861273,1763045513197,-500.0,0.00044383,120]
[393861274,1763045513207,-500.0,0.00044383,120]
[393861275,1763045513218,-500.0,0.00044383,120]
[393861276,1763045513228,-500.0,0.00044383,120]
[393861277,1763045513239,-780.21,0.00044383,120]
[393861278,1763045513251,-11245.95,0.00044383,3]
[393861279,1763045513261,-500.0,0.00044383,120]
[393861280,1763045513272,-640.4,0.00044383,120]
[393861281,1763045513282,-500.0,0.00044383,120]
[393861282,1763045513302,-500.0,0.00044383,120]
[393861283,1763045513320,-500.0,0.00044383,120]
[393861284,1763045513339,-500.0,0.00044383,120]
[393861285,1763045513366,-500.0,0.00044383,120]
[393861286,1763045513386,-500.0,0.00044383,120]
[393861287,1763045513407,-500.0,0.00044383,120]
[393861288,1763045513426,-500.0,0.00044383,120]
[393861289,1763045513443,-151.0,0.00044383,120]
[393861290,1763045513463,-500.0,0.00044383,120]
[393861291,1763045513485,-500.0,0.00044383,120]
[393861292,1763045513502,-685.45,0.00044383,120]
[393861293,1763045513521,-500.0,0.00044383,120]
[393861294,1763045513536,-500.0,0.00044383,120]
[393861295,1763045513553,-500.0,0.00044383,120]
[393861296,1763045513570,-500.0,0.00044383,3]
[393861297,1763045513586,-500.0,0.00044383,120]
[393861298,1763045513608,-151.0,0.00044383,7]
[393861299,1763045513625,-338.84632231,0.00044383,120]
[393861300,1763045513642,-151.0,0.00044383,7]
[393861301,1763045513660,-500.0,0.00044383,120]
[393861302,1763045513676,-500.0,0.00044383,120]
[393861303,1763045513692,-500.0,0.00044383,120]
[393861304,1763045513709,-500.0,0.00044383,120]
[393861305,1763045513724,-500.0,0.00044383,30]
[393861306,1763045513739,-500.0,0.00044383,120]
[393861307,1763045513755,-500.0,0.00044383,120]
[393861308,1763045513771,-598.06,0.00044383,120]
[393861309,1763045513787,-567.12,0.00044383,120]
[393861310,1763045513801,-779.28,0.00044383,120]
[393861311,1763045513816,-500.0,0.00044383,120]
[393861312,1763045513831,-500.0,0.00044383,120]
[393861313,1763045513847,-500.0,0.00044383,120]
[393861314,1763045513864,-500.0,0.00044383,120]
[393861315,1763045513880,-850.14,0.00044383,120]
[393861316,1763045513896,-793.5,0.00044383,120]
[393861317,1763045513912,-500.0,0.00044383,120]
[393861318,1763045513928,-566.87,0.00044383,120]
[393861319,1763045513944,-500.0,0.00044383,120]
[393861320,1763045513961,-500.0,0.00044383,120]
[393861321,1763045513977,-500.0,0.00044383,120]
[393861322,1763045513993,-500.0,0.00044383,21]
[393861323,1763045514008,-631.85,0.00044383,120]
[393861324,1763045514022,-500.0,0.00044383,120]
[393861325,1763045514037,-782.59,0.00044383,120]
[393861326,1763045514052,-826.01,0.00044383,120]
[393861327,1763045514068,-555.43,0.00044383,120]
[393861328,1763045514083,-500.0,0.00044383,120]
[393861329,1763045514103,-721.96,0.00044383,120]
[393861330,1763045514117,-500.0,0.00044383,120]
[393861331,1763045514132,-500.0,0.00044383,120]
[393861332,1763045514148,-500.0,0.00044383,120]
[393861333,1763045514164,-151.0,0.00044383,30]
[393861334,1763045514180,-500.0,0.00044383,120]
[393861335,1763045514196,-500.0,0.00044383,120]
[393861336,1763045514210,-500.0,0.00044383,120]
[393861337,1763045514225,-274.10436806,0.00044383,120]
[393861338,1763045514241,-500.0,0.00044383,120]
[393861339,1763045514259,-500.0,0.00044383,120]
[393861340,1763045514274,-500.0,0.00044383,120]
[393861341,1763045514290,-500.0,0.00044383,120]
[393861342,1763045514305,-470.68226556,0.00044383,120]
[393861343,1763045514320,-500.0,0.00044383,120]
[393861344,1763045514336,-500.0,0.00044383,120]
[393861345,1763045514353,-500.0,0.00044383,120]
[393861346,1763045514368,-913.41,0.00044383,120]
[393861347,1763045514383,-500.0,0.00044383,120]
[393861348,1763045514398,-579.47,0.00044383,120]
[393861349,1763045514413,-500.0,0.00044383,120]
[393861350,1763045514428,-500.0,0.00044383,120]
[393861351,1763045514443,-500.0,0.00044383,120]
[393861352,1763045514457,-500.0,0.00044383,120]
[393861353,1763045514473,-500.0,0.00044383,120]
[393861354,1763045514487,-500.0,0.00044383,120]
[393861355,1763045514501,-684.28,0.00044383,120]
[393861356,1763045514516,-500.0,0.00044383,120]
[393861357,1763045514532,-500.0,0.00044383,120]
[393861358,1763045514546,-323.78841583,0.00044383,120]
[393861359,1763045514561,-500.0,0.00044383,120]
[393861360,1763045514576,-624.24,0.00044383,2]
[393861361,1763045514591,-1000.0,0.00044383,7]
[393861362,1763045514614,-500.0,0.00044383,120]
[393861363,1763045514630,-770.91,0.00044383,120]
[393861364,1763045514646,-500.0,0.00044383,120]
[393861365,1763045514660,-500.0,0.00044383,120]
[393861366,1763045514677,-3457.67,0.00044383,120]
[393861367,1763045514692,-500.0,0.00044383,120]
[393861368,1763045514708,-500.0,0.00044383,120]
[393861369,1763045514723,-1457.38,0.00044383,120]
[393861370,1763045514739,-715.274392,0.00044383,120]
[393861371,1763045514756,-715.274392,0.00044383,120]
[393861372,1763045514772,-797.92,0.00044383,120]
[393861373,1763045514788,-500.0,0.00044383,120]
[393861374,1763045514804,-500.0,0.00044383,120]
[393861375,1763045514819,-500.0,0.00044383,120]
[393861376,1763045514834,-715.274392,0.00044383,120]
[393861377,1763045514856,-715.274392,0.00044383,120]
[393861378,1763045514870,-630.0,0.00044383,120]
[393861379,1763045514887,-500.0,0.00044383,120]
[393861380,1763045514904,-500.0,0.00044383,120]
[393861381,1763045515166,-500.0,0.00044383,120]
[393861382,1763045515176,-500.0,0.00044383,120]
[393861383,1763045515187,-500.0,0.00044383,120]
[393861384,1763045515196,-500.0,0.00044383,120]
[393861385,1763045515207,-500.0,0.00044383,120]
[393861386,1763045515216,-500.0,0.00044383,120]
[393861387,1763045515226,-1748.23,0.00044383,120]
[393861388,1763045515236,-500.0,0.00044383,120]
[393861389,1763045515249,-500.0,0.00044383,120]
[393861390,1763045515261,-156.527824,0.00044383,120]
[393861391,1763045515269,-871.35,0.00044383,120]
[393861392,1763045515279,-500.0,0.00044383,120]
[393861393,1763045515288,-854.46,0.00044383,120]
[393861394,1763045515300,-500.0,0.00044383,120]
[393861395,1763045515309,-500.0,0.00044383,120]
[393861396,1763045515319,-591.42,0.00044383,120]
[393861397,1763045515328,-614.87,0.00044383,120]
[393861398,1763045515338,-500.0,0.00044383,120]
[393861399,1763045515354,-500.0,0.00044383,120]
[393861400,1763045515364,-500.0,0.00044383,120]
[393861401,1763045515373,-500.0,0.00044383,120]
[393861402,1763045515383,-500.0,0.00044383,120]
[393861403,1763045515393,-817.21,0.00044383,120]
[393861404,1763045515404,-151.0,0.00044383,120]
[393861405,1763045515413,-500.0,0.00044383,120]
[393861406,1763045515423,-156.320738,0.00044383,120]
[393861407,1763045515432,-500.0,0.00044383,120]
[393861408,1763045515442,-151.0,0.00044383,120]
[393861409,1763045515452,-500.0,0.00044383,120]
[393861410,1763045515462,-151.0,0.00044383,120]
[393861411,1763045515471,-500.0,0.00044383,120]
[393861412,1763045515482,-699.0,0.00044383,120]
[393861413,1763045515491,-500.0,0.00044383,120]
[393861414,1763045515501,-585.98,0.00044383,120]
[393861415,1763045515511,-500.0,0.00044383,120]
[393861416,1763045515520,-1000.0,0.00044421,10]
[393861417,1763045515531,-300.0,0.00044609,90]
[393861418,1763045515540,-157.283892,0.0004464,2]
[393861419,1763045515549,-571.44,0.00044657,120]
[393861420,1763045515558,-500.0,0.00044657,120]
[393861421,1763045515569,-561.09526584,0.00044657,120]
[393861422,1763045515580,-500.0,0.00044657,120]
[393861423,1763045515590,-544.73,0.00044657,120]
[393861424,1763045515608,-500.0,0.00044657,120]
[393861425,1763045515618,-500.0,0.00044657,120]
[393861426,1763045515628,-500.0,0.00044657,120]
[393861427,1763045515638,-500.0,0.00044657,120]
[393861428,1763045515647,-500.0,0.00044657,120]
[393861429,1763045515657,-1000.0,0.00044657,2]
[393861430,1763045515667,-500.0,0.00044657,120]
[393861431,1763045515677,-608.84,0.00044657,120]
[393861432,1763045515686,-500.0,0.00044657,120]
[393861433,1763045515696,-500.0,0.00044657,120]
[393861434,1763045515705,-500.0,0.00044657,120]
[393861435,1763045515715,-500.0,0.00044657,120]
[393861436,1763045515724,-500.0,0.00044657,120]
[393861437,1763045515734,-500.0,0.00044657,120]
[393861438,1763045515744,-565.99,0.00044657,120]
[393861439,1763045515754,-500.0,0.00044657,120]
[393861440,1763045515764,-500.0,0.00044657,120]
[393861441,1763045515774,-500.0,0.00044657,120]
[393861442,1763045515784,-500.0,0.00044657,120]
[393861443,1763045515793,-500.0,0.00044657,120]
[393861444,1763045515803,-500.0,0.00044657,120]
[393861445,1763045515813,-500.0,0.00044657,120]
[393861446,1763045515823,-500.0,0.00044657,120]
[393861447,1763045515833,-500.0,0.00044657,120]
[393861448,1763045515843,-200.0,0.00044657,120]
[393861449,1763045515859,-199.56436092,0.00044657,120]
[393861450,1763045515869,-500.0,0.00044657,120]
[393861451,1763045515879,-500.0,0.00044657,120]
[393861452,1763045515889,-500.0,0.00044657,120]
[393861453,1763045515899,-1000.0,0.00044657,120]
[393861454,1763045515909,-500.0,0.00044657,120]
[393861455,1763045515918,-500.0,0.00044657,120]
[393861456,1763045515928,-500.0,0.00044657,120]
[393861457,1763045515938,-732.35,0.00044657,120]
[393861458,1763045515948,-500.0,0.00044657,120]
[393861459,1763045515958,-500.0,0.00044657,120]
[393861460,1763045515969,-500.0,0.00044657,120]
[393861461,1763045515979,-421.86728972,0.00044657,120]
[393861462,1763045515989,-500.0,0.00044657,120]
[393861463,1763045515998,-570.02,0.00044657,120]
[393861464,1763045516008,-502.75,0.00044657,120]
[393861465,1763045516017,-500.0,0.00044657,120]
[393861466,1763045516029,-497.16036616,0.00044657,120]
[393861467,1763045516038,-500.0,0.00044657,120]
[393861468,1763045516049,-500.0,0.00044657,120]
[393861469,1763045516059,-500.0,0.00044657,120]
[393861470,1763045516070,-585.51,0.00044657,120]
[393861471,1763045516079,-266.14931417,0.00044657,120]
[393861472,1763045516089,-500.0,0.00044657,120]
[393861473,1763045516105,-500.0,0.00044657,120]
[393861474,1763045516115,-500.0,0.00044657,120]
[393861475,1763045516125,-1000.0,0.00044657,2]
[393861476,1763045516135,-500.0,0.00044657,120]
[393861477,1763045516144,-500.0,0.00044657,120]
[393861478,1763045516154,-500.0,0.00044657,120]
[393861479,1763045516163,-500.0,0.00044657,120]
[393861480,1763045516173,-500.0,0.00044657,120]
[393861481,1763045516183,-500.0,0.00044657,120]
[393861482,1763045516193,-176.71494199,0.00044657,120]
[393861483,1763045516203,-500.0,0.00044657,120]
[393861484,1763045516213,-500.0,0.00044657,120]
[393861485,1763045516223,-514.82,0.00044657,120]
[393861486,1763045516232,-500.0,0.00044657,120]
[393861487,1763045516241,-500.0,0.00044657,120]
[393861488,1763045516252,-500.0,0.00044657,120]
[393861489,1763045516262,-500.0,0.00044657,120]
[393861490,1763045516276,-500.0,0.00044657,120]
[393861491,1763045516286,-500.0,0.00044657,120]
[393861492,1763045516296,-577.09,0.00044657,120]
[393861493,1763045516305,-500.0,0.00044657,120]
[393861494,1763045516314,-834.01,0.00044657,120]
[393861495,1763045516323,-500.0,0.00044657,120]
[393861496,1763045516333,-969.65,0.00044657,120]
[393861497,1763045516343,-153.171769,0.00044657,120]
[393861498,1763045516355,-1066.87,0.00044657,7]
[393861499,1763045516365,-1264.73,0.00044657,30]
[393861500,1763045516375,-500.0,0.00044657,120]
[393861501,1763045516384,-787.85,0.00044657,120]
[393861502,1763045516394,-552.73,0.00044657,120]
[393861503,1763045516403,-2599.22,0.00044657,2]
[393861504,1763045516413,-500.0,0.00044657,120]
[393861505,1763045516422,-500.0,0.00044657,120]
[393861506,1763045516432,-500.0,0.00044657,120]
[393861507,1763045516442,-736.82,0.00044657,120]
[393861508,1763045516452,-631.87705477,0.00044657,120]
[393861509,1763045516461,-500.0,0.00044657,120]
[393861510,1763045516470,-512.47,0.00044657,120]
[393861511,1763045516479,-500.0,0.00044657,120]
[393861512,1763045516488,-500.0,0.00044657,120]
[393861513,1763045516498,-534.45,0.00044657,120]
[393861514,1763045516508,-155.92781,0.00044657,120]
[393861515,1763045516516,-500.0,0.00044657,120]
[393861516,1763045516526,-500.0,0.00044657,120]
[393861517,1763045516536,-500.0,0.00044657,120]
[393861518,1763045516545,-500.0,0.00044657,120]
[393861519,1763045516554,-500.0,0.00044657,120]
[393861520,1763045516564,-500.0,0.00044657,120]
[393861521,1763045516575,-539.92,0.00044657,120]
[393861522,1763045516586,-500.0,0.00044657,120]
[393861523,1763045516601,-500.0,0.00044657,2]
[393861524,1763045516611,-500.0,0.00044657,120]
[393861525,1763045516622,-500.0,0.00044657,120]
[393861526,1763045516633,-295.75790561,0.00044657,120]
[393861527,1763045516643,-500.0,0.00044657,120]
[393861528,1763045516653,-500.0,0.00044657,120]
[393861529,1763045516663,-558.63,0.00044657,120]
[393861530,1763045516673,-500.0,0.00044657,120]
[393861531,1763045516684,-500.0,0.00044657,120]
[393861532,1763045516694,-500.0,0.00044657,120]
[393861533,1763045516704,-500.0,0.00044657,120]
[393861534,1763045516714,-500.0,0.00044657,120]
[393861535,1763045516724,-500.0,0.00044657,120]
[393861536,1763045516734,-500.0,0.00044657,120]
[393861537,1763045516744,-537.81713867,0.00044657,120]